bitfinex-derivatives/quotes_ETHF0:USTF0_20250217
["timestamp","ask_amount","ask_price","bid_price","bid_amount"]
[1739824528454,0.73173,2732.9,2732.7,0.00548456]
[1739824528651,2.498,2733.0,2732.7,0.00548456]
[1739824529052,3.22969,2733.0,2732.7,0.73724456]
[1739824529353,2.498,2733.0,2732.7,0.00548456]
[1739824529662,4.86867573,2733.2,2732.9,0.73171]
[1739824529663,3.76455,2733.2,2732.9,0.73171]
[1739824530062,3.0329,2733.2,2732.8,0.5312]
[1739824530362,0.73169,2733.0,2732.7,0.73724456]
[1739824530662,0.73173,2732.9,2732.7,0.00548456]
[1739824530961,0.73172,2733.0,2732.7,0.00548456]
[1739824531362,0.5486,2733.1,2732.7,0.00548456]
[1739824531757,2.498,2733.5,2732.9,3.2078]
[1739824531957,0.73165,2733.2,2732.7,0.73723456]
[1739824532157,0.73167,2733.1,2732.7,0.73723456]
[1739824532561,0.73167,2733.1,2732.8,0.73172]
[1739824532756,4.4678,2733.4,2732.7,0.00548456]
[1739824533066,3.7362,2733.4,2732.7,0.73724456]
[1739824533255,0.73166,2733.2,2732.8,0.73172]
[1739824533456,3.037,2733.1,2732.8,0.73172]
[1739824533758,2.498,2733.1,2732.7,0.00548456]
[1739824534063,3.7362,2733.4,2733.3,0.73161]
[1739824534064,3.2078,2733.4,2733.3,0.73161]
[1739824534358,3.2078,2733.4,2733.2,0.73163]
[1739824534562,3.9394,2733.4,2733.1,1.6811]
[1739824534757,0.73164,2733.2,2733.1,1.1513]
[1739824535061,0.5647,2733.3,2733.1,0.5747]
[1739824535262,0.5647,2733.3,2733.2,0.73164]
[1739824535461,0.5647,2733.3,2733.1,0.5747]
[1739824535462,1.29631,2733.3,2733.1,0.5747]
[1739824536152,0.5647,2733.3,2733.1,0.5747]
[1739824536356,0.73164,2733.2,2733.1,0.5747]
[1739824536658,0.73164,2733.2,2732.9,3.7406]
[1739824537065,0.73164,2733.2,2732.9,4.4723]
[1739824537259,0.5647,2733.3,2732.9,4.4723]
[1739824537661,0.73166,2733.2,2733.0,0.73168]
[1739824538264,3.93941,2733.4,2733.0,0.73168]
[1739824538662,3.93941,2733.4,2732.9,3.7406]
[1739824538959,3.93941,2733.4,2733.0,0.73169]
[1739824539159,3.2078,2733.4,2732.9,3.7406]
[1739824539362,0.73162,2733.3,2733.1,0.73165]
[1739824539963,0.7316,2733.4,2733.1,0.73164]
[1739824540167,3.22957,2733.5,2732.9,3.7406]
[1739824540368,2.498,2733.5,2733.3,0.73161]
[1739824540566,3.22956,2733.5,2733.4,0.5417]
[1739824541162,3.7866,2733.6,2733.4,0.5417]
[1739824541364,2.498,2733.6,2733.5,0.73156]
[1739824541670,3.22953,2733.6,2733.5,0.73156]
[1739824542365,3.22953,2733.6,2733.4,1.27327]
[1739824542668,3.22953,2733.6,2733.4,0.5417]
[1739824542869,3.22953,2733.6,2733.4,1.27328]
[1739824543367,0.73156,2733.5,2733.4,1.27328]
[1739824543575,2.498,2733.6,2733.4,1.27328]
[1739824543765,3.22954,2733.6,2733.4,1.27328]
[1739824544270,0.73156,2733.5,2733.4,1.27328]
[1739824544665,0.73156,2733.5,2733.4,0.5417]
[1739824545467,2.498,2733.6,2733.4,0.5417]
[1739824545663,0.5726,2733.7,2733.4,0.5417]
[1739824545863,3.0586,2733.8,2733.4,0.5417]
[1739824546068,3.79009,2733.8,2733.7,0.7315]
[1739824546366,3.0586,2733.8,2733.7,0.7315]
[1739824546572,3.2078,2733.9,2733.8,0.73148]
[1739824547174,3.2078,2733.9,2733.7,0.73149]
[1739824547369,3.93925,2733.9,2733.7,0.73149]
[1739824547569,3.2078,2733.9,2733.5,3.7717]
[1739824547864,0.7315,2733.7,2733.5,3.7717]
[1739824548073,0.7315,2733.7,2733.5,4.50325]
[1739824548271,5.05317,2733.9,2733.5,3.7717]
[1739824548473,1.1139,2733.9,2733.5,3.7717]
[1739824548968,3.22944,2734.0,2733.8,0.73148]
[1739824549377,2.498,2734.0,2733.5,3.7717]
[1739824549577,2.498,2734.0,2733.6,0.73151]
[1739824549874,0.73148,2733.8,2733.6,0.73151]
[1739824550573,0.73146,2733.9,2733.7,0.73149]
[1739824550774,7.16208456,2734.2,2733.8,0.73148]
[1739824551276,0.73145,2733.9,2733.7,0.73148]
[1739824552480,7.16208456,2734.2,2733.5,3.7717]
[1739824552674,0.73143,2734.0,2733.8,0.73147]
[1739824552880,7.16208456,2734.2,2733.6,0.73152]
[1739824553178,10.4,2734.1,2733.5,3.7717]
[1739824553372,1.30583,2734.0,2733.8,0.73147]
[1739824553971,0.5744,2734.0,2733.8,0.73147]
[1739824554166,1.30583,2734.0,2733.8,0.73147]
[1739824554580,0.5744,2734.0,2733.8,0.73147]
[1739824554781,0.73145,2733.9,2733.8,0.73147]
[1739824555081,1.30584,2734.0,2733.8,0.73145]
[1739824555277,0.73145,2733.9,2733.8,0.73146]
[1739824555973,0.5744,2734.0,2733.5,3.7717]
[1739824556283,0.73149,2733.8,2733.6,0.73151]
[1739824556477,0.73149,2733.8,2733.5,3.7717]
[1739824556676,0.5744,2734.0,2733.6,0.73151]
[1739824557276,0.73148,2733.8,2733.6,0.73151]
[1739824557776,0.73148,2733.8,2733.7,0.7315]
[1739824557974,0.73148,2733.8,2733.6,0.73152]
[1739824558175,0.73148,2733.8,2733.6,0.73151]
[1739824558879,0.73153,2733.6,2733.5,3.2078]
[1739824560577,1.1323,2733.7,2733.5,3.2078]
[1739824560782,1.86382,2733.7,2733.5,3.93934]
[1739824560978,1.1323,2733.7,2733.5,3.93934]
[1739824561184,0.73153,2733.6,2733.5,3.2078]
[1739824561786,1.1323,2733.7,2733.5,0.73155]
[1739824561787,1.86382,2733.7,2733.5,0.73155]
[1739824561987,1.86381,2733.7,2733.5,0.73154]
[1739824562181,1.1323,2733.7,2733.4,1.27326]
[1739824562379,1.1323,2733.7,2732.9,2.93758]
[1739824562380,3.79097573,2733.5,2732.9,1.1083]
[1739824562582,0.73167,2733.1,2732.8,4.51633]
[1739824562783,3.0235,2733.4,2732.8,4.51633]
[1739824562784,1.83519,2733.0,2732.8,4.51633]
[1739824562984,1.1035,2733.0,2732.8,4.51633]
[1739824563182,1.1035,2733.0,2732.8,3.7846]
[1739824563489,4.3322,2733.0,2732.8,3.2078]
[1739824563684,3.6005,2733.0,2732.8,3.2078]
[1739824564284,0.73172,2732.9,2732.8,3.2078]
[1739824564484,0.5767,2732.9,2732.8,3.2078]
[1739824564687,1.30842,2732.9,2732.8,3.2078]
[1739824564879,0.5767,2732.9,2732.8,3.2078]
[1739824565183,0.5767,2732.9,2732.8,3.93954]
[1739824565791,0.5499,2733.0,2732.9,0.73172]
[1739824566391,0.5499,2733.0,2732.9,1.26562]
[1739824566986,2.497,2733.4,2733.0,1.82923]
[1739824567191,2.497,2733.4,2733.3,0.73161]
[1739824567586,3.22852,2733.7,2733.1,3.2078]
[1739824567893,3.22852,2733.7,2733.4,0.73156]
[1739824568188,0.73154,2733.6,2733.4,0.73156]
[1739824568384,1.6679,2733.8,2733.1,3.2078]
[1739824568588,3.22851,2733.7,2733.5,0.73154]
[1739824568785,1.6679,2733.8,2733.1,3.2078]
[1739824568984,4.89639,2733.8,2733.6,0.73152]
[1739824569387,2.39939,2733.8,2733.6,0.73152]
[1739824569588,0.7315,2733.7,2733.6,0.73151]
[1739824569790,0.7315,2733.7,2733.5,1.29014]
[1739824570093,0.7315,2733.7,2733.5,1.83364]
[1739824570484,2.39939,2733.8,2733.5,1.83364]
[1739824570884,2.39939,2733.8,2733.5,1.1021]
[1739824571084,1.6679,2733.8,2733.5,1.83363]
[1739824571285,0.73156,2733.5,2733.4,3.2078]
[1739824571485,5.45887573,2733.8,2733.4,3.2078]
[1739824571690,0.73154,2733.6,2733.4,3.2078]
[1739824572294,1.6679,2733.8,2733.6,0.73152]
[1739824572585,1.6679,2733.8,2733.5,1.82973]
[1739824572793,1.6679,2733.8,2733.6,0.73153]
[1739824573292,2.39938,2733.8,2733.6,0.73153]
[1739824574285,1.6679,2733.8,2733.5,1.0982]
[1739824574487,2.39939,2733.8,2733.6,0.73152]
[1739824575188,1.6679,2733.8,2733.6,0.73151]
[1739824575488,0.7315,2733.7,2733.5,1.82974]
[1739824575795,0.7315,2733.7,2733.4,0.73157]
[1739824576203,1.6679,2733.8,2733.2,1.1394]
[1739824576494,1.6679,2733.8,2733.6,0.73152]
[1739824576696,2.39938,2733.8,2733.6,0.73152]
[1739824577691,0.73152,2733.7,2733.2,1.1394]
[1739824578295,0.73152,2733.7,2733.6,0.73153]
[1739824578695,1.6679,2733.8,2733.2,1.1394]
[1739824578892,0.73154,2733.6,2733.2,0.5673]
[1739824579099,0.73154,2733.6,2733.4,0.73158]
[1739824579487,0.73154,2733.6,2733.2,0.5673]
[1739824579692,0.73156,2733.5,2733.3,0.73161]
[1739824579986,5.45887573,2733.8,2733.2,0.5673]
[1739824580186,6.19035573,2733.8,2733.6,0.73152]
[1739824580393,2.39938,2733.8,2733.6,0.73152]
[1739824580698,1.6679,2733.8,2733.6,0.73152]
[1739824580999,0.7315,2733.7,2733.6,0.73152]
[1739824581200,1.6679,2733.8,2733.6,0.73152]
[1739824581402,0.7315,2733.7,2733.6,0.73152]
[1739824581600,2.39939,2733.8,2733.6,0.73152]
[1739824581900,0.73153,2733.7,2733.5,0.73154]
[1739824582198,0.73153,2733.7,2733.2,2.39638]
[1739824582402,0.73153,2733.7,2733.6,0.73153]
[1739824584291,2.497,2733.8,2733.6,0.73151]
[1739824584699,0.7315,2733.7,2733.6,0.73151]
[1739824585096,0.00548456,2734.2,2733.6,5.03663]
[1739824585297,0.00548456,2734.2,2733.7,0.5325]
[1739824585497,0.73146,2733.9,2733.7,0.5325]
[1739824585698,0.5525,2733.8,2733.7,0.5325]
[1739824585897,1.28398,2733.8,2733.7,0.5325]
[1739824586198,0.5525,2733.8,2733.7,0.5325]
[1739824586503,0.73156,2733.5,2733.1,3.2078]
[1739824586695,0.73156,2733.5,2733.2,0.5325]
[1739824587297,1.87254,2733.6,2733.3,0.73159]
[1739824587499,1.87253,2733.6,2733.3,0.73161]
[1739824587698,0.5755,2733.6,2733.5,0.73156]
[1739824588898,0.5755,2733.6,2733.2,0.5325]
[1739824589201,1.30704,2733.6,2733.4,0.73158]
[1739824589505,2.497,2733.7,2733.2,0.5325]
[1739824589698,3.2285,2733.7,2733.5,0.73155]
[1739824590095,3.2285,2733.7,2733.2,0.5325]
[1739824590096,2.497,2733.7,2733.6,0.73153]
[1739824590499,0.73141,2734.1,2733.4,8.82768573]
[1739824590703,2.497,2734.1,2734.0,0.73142]
[1739824591098,6.5572,2734.8,2734.1,0.7314]
[1739824591305,0.73125,2734.7,2734.4,0.73131]
[1739824591506,6.1908,2734.8,2734.1,0.5796]
[1739824591507,3.2078,2734.8,2734.6,0.73125]
[1739824591705,3.93902,2734.8,2734.5,1.27798]
[1739824591905,3.7366,2734.8,2734.5,0.5467]
[1739824592308,4.3204,2734.8,2734.5,0.5467]
[1739824592505,0.73125,2734.7,2734.5,0.5467]
[1739824592704,0.73126,2734.7,2734.5,0.5467]
[1739824592909,1.25836,2734.7,2734.5,0.5467]
[1739824593300,0.73126,2734.6,2734.5,0.5467]
[1739824593500,0.73129,2734.5,2734.4,0.00548456]
[1739824593705,5.7048,2734.5,2733.8,3.7545]
[1739824593907,5.7048,2734.5,2733.7,0.5371]
[1739824593908,0.73149,2733.8,2733.5,3.2078]
[1739824594111,3.79097573,2733.9,2733.5,3.2078]
[1739824594313,1.2885,2733.8,2733.5,3.2078]
[1739824594614,0.557,2733.8,2733.5,3.2078]
[1739824594810,0.73151,2733.7,2733.5,3.2078]
[1739824595004,0.557,2733.8,2733.5,3.2078]
[1739824595311,0.557,2733.8,2733.5,3.93934]
[1739824595610,0.557,2733.8,2733.5,3.2078]
[1739824595801,1.28849,2733.8,2733.5,3.2078]
[1739824596003,0.557,2733.8,2733.5,3.93934]
[1739824596205,0.557,2733.8,2733.5,3.2078]
[1739824596609,1.28848,2733.8,2733.5,3.93934]
[1739824597003,1.83328,2733.8,2733.5,3.93934]
[1739824597411,0.73151,2733.7,2733.5,3.2078]
[1739824597712,1.1018,2733.8,2733.6,0.73151]
[1739824598114,0.00142041,2733.7,2733.6,0.73151]
[1739824601108,0.00142041,2733.7,2733.6,0.73153]
[1739824601807,0.73294041,2733.7,2733.5,3.2078]
[1739824602004,0.00142041,2733.7,2733.5,3.2078]
[1739824602203,0.00142041,2733.7,2733.6,0.73153]
[1739824602407,0.73292041,2733.7,2733.6,0.73153]
[1739824602617,0.00142041,2733.7,2733.6,0.73153]
[1739824603116,0.00142041,2733.7,2733.5,3.2078]
[1739824603417,0.73156,2733.5,2733.4,0.00548456]
[1739824603615,3.22756,2733.5,2733.4,0.00548456]
[1739824604410,2.496,2733.5,2733.4,0.00548456]
[1739824604609,2.496,2733.5,2733.4,0.57358456]
[1739824605120,3.22756,2733.5,2733.4,0.00548456]
[1739824606111,4.36217573,2733.6,2733.4,0.00548456]
[1739824606112,0.5712,2733.6,2733.4,0.00548456]
[1739824606418,3.20922041,2733.7,2733.4,0.00548456]
[1739824606719,2.496,2733.6,2733.4,0.73705456]
[1739824606919,2.496,2733.6,2733.5,0.73156]
[1739824607218,2.496,2733.6,2733.5,0.5807]
[1739824607917,3.22753,2733.6,2733.5,0.5807]
[1739824608118,0.73156,2733.5,2733.4,0.00548456]
[1739824608321,1.27326,2733.5,2733.4,0.00548456]
[1739824608713,0.5417,2733.5,2733.4,0.00548456]
[1739824609619,1.27326,2733.5,2733.4,0.00548456]
[1739824610118,0.5417,2733.5,2733.4,0.00548456]
[1739824610319,0.5417,2733.5,2733.4,0.73706456]
[1739824610619,3.22894041,2733.7,2733.5,0.73153]
[1739824610816,0.00142041,2733.7,2733.5,0.5272]
[1739824611119,0.00142041,2733.7,2733.6,0.73153]
[1739824614019,0.00142041,2733.7,2733.5,0.5272]
[1739824614321,0.00142041,2733.7,2733.4,0.73705456]
[1739824614512,0.73154,2733.6,2733.4,0.73705456]
[1739824614716,1.84084,2733.6,2733.4,0.73705456]
[1739824614919,0.73156,2733.5,2733.4,0.00548456]
[1739824615118,0.73156,2733.5,2733.4,0.73706456]
[1739824615617,0.73156,2733.5,2733.4,0.00548456]
[1739824616022,0.73156,2733.5,2733.4,0.73705456]
[1739824617224,0.73156,2733.5,2733.4,0.00548456]
[1739824618116,0.73156,2733.5,2733.4,0.73706456]
[1739824619123,1.6586,2733.6,2733.4,0.73706456]
[1739824619320,2.39014,2733.6,2733.4,0.73706456]
[1739824619521,1.6586,2733.6,2733.4,0.00548456]
[1739824619727,2.39014,2733.6,2733.4,0.73704456]
[1739824619924,1.6586,2733.6,2733.5,0.73156]
[1739824620429,2.39014,2733.6,2733.4,0.73704456]
[1739824620724,2.39014,2733.6,2733.4,0.00548456]
[1739824620927,1.1093,2733.6,2733.5,0.73156]
[1739824621629,2.49742041,2733.7,2733.4,0.00548456]
[1739824621630,0.00142041,2733.7,2733.6,0.73153]
[1739824622218,0.73156,2733.5,2733.4,0.00548456]
[1739824629132,1.29426,2733.5,2733.4,0.00548456]
[1739824631626,1.29426,2733.5,2732.7,0.582]
[1739824631627,0.73174,2732.8,2732.7,0.582]
[1739824632133,0.73177,2732.7,2732.6,3.2078]
[1739824632334,1.27887,2732.7,2732.6,3.2078]
[1739824633530,0.5471,2732.7,2732.6,3.9396]
[1739824634031,0.5471,2732.7,2732.6,3.2078]
[1739824634435,0.5471,2732.7,2732.6,3.9396]
[1739824634933,0.5471,2732.7,2732.6,3.2078]
[1739824635530,0.5471,2732.7,2732.6,3.9396]
[1739824636736,0.5471,2732.7,2732.6,3.2078]
[1739824636937,0.00548456,2732.9,2732.4,0.00548456]
[1739824637141,2.496,2732.8,2732.7,0.73175]
[1739824637645,3.22774,2732.8,2732.7,0.73175]
[1739824637842,2.496,2732.8,2732.7,0.73175]
[1739824639550,3.22774,2732.8,2732.7,0.73175]
[1739824639742,2.496,2732.8,2732.7,0.73175]
[1739824640139,3.22776,2732.8,2732.6,1.26689]
[1739824640446,0.73177,2732.7,2732.6,0.5351]
[1739824640641,0.73181,2732.6,2732.4,0.73732456]
[1739824640845,2.37551,2732.6,2732.4,0.73732456]
[1739824641043,1.6437,2732.6,2732.4,0.00548456]
[1739824641250,0.73182,2732.5,2732.4,0.00548456]
[1739824641448,3.79097573,2732.5,2731.9,3.2078]
[1739824641651,0.73191,2732.2,2731.9,3.2078]
[1739824641950,1.0961,2732.1,2731.9,3.2078]
[1739824642252,3.22788,2732.4,2732.1,0.73193]
[1739824642448,2.496,2732.4,2732.0,1.1031]
[1739824642648,18.49487573,2732.7,2732.6,0.7318]
[1739824642649,6.2667,2732.7,2732.6,0.7318]
[1739824642843,0.5782,2733.0,2732.8,0.73174]
[1739824643143,3.22767,2733.1,2732.8,0.73174]
[1739824643347,3.22767,2733.1,2732.6,1.6575]
[1739824643348,0.7317,2733.0,2732.6,1.6575]
[1739824643542,2.496,2733.1,2732.6,1.6575]
[1739824643744,4.3166,2733.3,2732.8,3.93954]
[1739824643947,2.496,2733.2,2732.8,3.93954]
[1739824644344,5.04822,2733.3,2732.8,3.93954]
[1739824644549,0.73164,2733.2,2732.8,3.93954]
[1739824644743,4.3166,2733.3,2732.8,3.93954]
[1739824644950,5.04822,2733.3,2732.8,3.93954]
[1739824645649,2.496,2733.4,2732.8,3.93954]
[1739824646354,2.496,2733.6,2732.8,3.93954]
[1739824646556,0.73156,2733.5,2732.8,3.93954]
[1739824647956,4.86852041,2733.7,2733.3,0.7316]
[1739824647957,3.22755,2733.6,2733.3,0.7316]
[1739824648851,2.496,2733.6,2733.2,1.86162]
[1739824649052,0.73159,2733.4,2733.2,1.86162]
[1739824649254,6.28697573,2733.6,2733.1,3.2078]
[1739824649552,6.28697573,2733.6,2733.2,0.73162]
[1739824649759,0.73157,2733.5,2733.2,0.73162]
[1739824649953,7.01852573,2733.6,2733.3,0.7316]
[1739824650256,2.496,2733.6,2733.1,3.2078]
[1739824650458,3.22754,2733.6,2733.3,0.73158]
[1739824650651,0.73156,2733.5,2733.3,0.73158]
[1739824650857,2.496,2733.6,2733.3,0.73158]
[1739824651051,0.73157,2733.5,2733.3,1.28528]
[1739824651253,3.22755,2733.6,2733.4,0.73157]
[1739824651448,1.66620497,2733.7,2733.3,0.5537]
[1739824651655,4.89371497,2733.7,2733.5,0.73156]
[1739824651961,4.16220497,2733.7,2733.5,0.73156]
[1739824652561,4.89372497,2733.7,2733.5,0.73156]
[1739824652747,2.39772497,2733.7,2733.5,0.73156]
[1739824652952,2.39772497,2733.7,2733.3,1.0901]
[1739824652953,0.00690497,2733.7,2733.3,1.0901]
[1739824653156,0.00690497,2733.7,2733.6,0.73153]
[1739824654758,5.7028,2734.5,2733.7,1.82876]
[1739824654963,5.7028,2734.5,2734.1,3.2078]
[1739824655161,5.7028,2734.5,2734.2,0.5622]
[1739824655366,5.7028,2734.5,2734.3,0.73134]
[1739824655555,5.7028,2734.5,2734.3,1.29734]
[1739824655862,5.7028,2734.5,2734.3,1.29733]
[1739824656653,3.2078,2734.5,2734.3,1.29733]
[1739824656860,3.2078,2734.5,2734.3,0.566]
[1739824657058,3.2078,2734.5,2734.4,0.73132]
[1739824657857,0.00548456,2734.7,2734.3,4.35697573]
[1739824658361,0.00548456,2734.7,2734.6,0.73126]
[1739824659263,0.00548456,2734.7,2734.4,3.7826]
[1739824659458,0.00548456,2734.7,2734.5,0.73127]
[1739824659657,0.00548456,2734.7,2734.6,0.73126]
[1739824663059,0.5483,2735.1,2735.0,0.73115]
[1739824663259,0.5483,2735.1,2734.8,3.2078]
[1739824663463,0.5483,2735.1,2735.0,0.73115]
[1739824663963,0.5483,2735.1,2734.8,3.2078]
[1739824663964,0.5483,2735.1,2734.9,0.73116]
[1739824664164,0.5483,2735.1,2735.0,0.73115]
[1739824665056,0.5483,2735.1,2734.8,3.21328456]
[1739824665256,0.73115,2735.0,2734.8,3.21328456]
[1739824665452,0.5483,2735.1,2735.0,0.73115]
[1739824667861,0.5306,2735.2,2735.1,0.73113]
[1739824669663,1.26171,2735.2,2735.0,0.73115]
[1739824669867,0.5306,2735.2,2735.1,0.73113]
[1739824673573,0.73114,2735.1,2734.9,0.73117]
[1739824673762,0.5306,2735.2,2734.8,3.21328456]
[1739824673959,0.5306,2735.2,2735.1,0.73113]
[1739824675269,0.5306,2735.2,2735.1,3.93893]
[1739824675572,0.5306,2735.2,2735.1,0.73113]
[1739824677072,1.2617,2735.2,2735.1,0.73113]
[1739824677570,1.2617,2735.2,2734.8,3.21328456]
[1739824677571,0.73115,2735.1,2734.8,3.21328456]
[1739824677777,0.73115,2735.1,2735.0,0.73115]
[1739824678273,0.5306,2735.2,2734.8,3.21328456]
[1739824678475,0.73117,2735.0,2734.9,0.73117]
[1739824678662,0.73114,2735.1,2735.0,0.73113]
[1739824679373,0.5306,2735.2,2734.8,3.21328456]
[1739824679576,0.73118,2734.9,2734.8,0.00548456]
[1739824680073,1.29808,2734.9,2734.8,0.00548456]
[1739824680265,0.5669,2734.9,2734.8,0.00548456]
[1739824680771,0.5669,2734.9,2734.8,0.73669456]
[1739824681372,1.29808,2734.9,2734.8,0.00548456]
[1739824681672,0.5669,2734.9,2734.8,0.00548456]
[1739824681872,0.5669,2734.9,2734.8,0.73669456]
[1739824682278,0.5306,2735.2,2735.1,0.73113]
[1739824683367,0.5306,2735.2,2734.9,1.0942]
[1739824683368,1.08078456,2735.3,2735.2,0.7311]
[1739824684178,1.81185456,2735.3,2735.2,0.7311]
[1739824684473,1.08078456,2735.3,2735.2,0.7311]
[1739824684678,1.81185456,2735.3,2735.2,0.7311]
[1739824684874,1.08078456,2735.3,2735.2,0.7311]
[1739824685068,1.81185456,2735.3,2735.2,0.7311]
[1739824685274,0.00548456,2735.3,2735.2,0.7311]
[1739824685476,0.00548456,2735.3,2735.1,0.73111]
[1739824685775,0.00548456,2735.3,2735.2,0.7311]
[1739824686870,0.00548456,2735.3,2735.2,3.9389]
[1739824687275,0.73086,2736.2,2735.2,9.2078]
[1739824687578,1.1144,2736.1,2735.9,0.7309]
[1739824687878,1.1144,2736.1,2736.0,0.73089]
[1739824688180,1.1144,2736.1,2735.9,0.73091]
[1739824688476,0.73089,2736.0,2735.9,0.73091]
[1739824688670,1.1144,2736.1,2735.9,0.73091]
[1739824688871,1.84527,2736.1,2735.9,0.73091]
[1739824689268,3.94410456,2736.3,2735.9,0.73089]
[1739824689978,0.00548456,2736.3,2736.2,0.73083]
[1739824690480,0.00548456,2736.3,2736.2,1.26793]
[1739824691180,0.00548456,2736.3,2736.2,0.5371]
[1739824691481,0.73086,2736.1,2736.0,3.2078]
[1739824691772,0.5351,2736.2,2736.0,3.2078]
[1739824691978,1.26594,2736.2,2736.0,3.93869]
[1739824692181,0.5351,2736.2,2736.0,3.93869]
[1739824692383,0.5351,2736.2,2736.1,0.73086]
[1739824692679,0.5351,2736.2,2736.1,0.5729]
[1739824693276,0.5351,2736.2,2736.0,3.2078]
[1739824693483,0.5367,2736.1,2736.0,3.2078]
[1739824693979,0.5351,2736.2,2736.0,3.2078]
[1739824694179,0.73630456,2736.3,2736.0,3.93867]
[1739824694374,0.00548456,2736.3,2736.1,0.73085]
[1739824694770,0.73630456,2736.3,2736.2,0.5784]
[1739824694981,0.73629456,2736.3,2736.2,0.5784]
[1739824695180,0.00548456,2736.3,2736.2,0.5784]
[1739824695375,0.00548456,2736.3,2736.2,1.30923]
[1739824696078,0.00548456,2736.3,2736.2,1.84293]
[1739824696478,0.00548456,2736.3,2736.2,1.1121]
[1739824696782,0.00548456,2736.3,2736.2,1.84293]
[1739824698076,0.00548456,2736.3,2736.2,1.1121]
[1739824698275,0.00548456,2736.3,2736.2,0.5784]
[1739824698982,0.73085,2736.2,2736.0,3.2078]
[1739824699181,0.00548456,2736.3,2736.0,3.2078]
[1739824699382,0.73630456,2736.3,2736.0,3.2078]
[1739824699581,0.00548456,2736.3,2736.2,0.73083]
[1739824700081,0.73629456,2736.3,2736.1,0.73085]
[1739824700380,0.00548456,2736.3,2736.2,0.73083]
[1739824700978,0.00548456,2736.3,2736.0,3.2078]
[1739824701479,0.00548456,2736.3,2736.2,0.73083]
[1739824702183,0.00548456,2736.3,2736.0,3.2078]
[1739824702483,0.73084,2736.2,2736.1,0.73085]
[1739824702673,0.73630456,2736.3,2736.0,3.2078]
[1739824702874,0.00548456,2736.3,2736.2,0.73083]
[1739824704581,0.00548456,2736.3,2736.0,3.2078]
[1739824705376,5.70428456,2736.3,2735.8,0.5647]
[1739824705583,6.99877573,2736.0,2735.4,3.2078]
[1739824705882,6.99877573,2736.0,2735.1,2.491]
[1739824705883,0.73104,2735.5,2735.2,0.5731]
[1739824706080,1.0858,2735.4,2735.2,0.5731]
[1739824706582,0.73107,2735.3,2735.2,0.5731]
[1739824706787,0.73107,2735.3,2735.1,3.2078]
[1739824706977,1.81687,2735.4,2735.1,3.2078]
[1739824707180,1.0858,2735.4,2735.1,3.2078]
[1739824707379,1.0858,2735.4,2735.2,0.73108]
[1739824708189,1.0858,2735.4,2735.1,3.2078]
[1739824708190,1.81686,2735.4,2735.1,3.93892]
[1739824708587,1.0858,2735.4,2735.1,3.2078]
[1739824708881,1.81686,2735.4,2735.1,3.2078]
[1739824709186,1.81686,2735.4,2735.1,3.93892]
[1739824709383,1.0858,2735.4,2735.1,3.2078]
[1739824709983,1.0858,2735.4,2735.2,0.73109]
[1739824710381,0.7311,2735.2,2735.1,3.2078]
[1739824710580,0.7311,2735.2,2734.9,4.32747573]
[1739824710987,0.7311,2735.2,2734.9,5.05865573]
[1739824711184,1.6696,2735.4,2734.9,4.32747573]
[1739824711779,0.7311,2735.2,2734.9,5.05863573]
[1739824711980,1.6696,2735.4,2734.9,4.32747573]
[1739824712188,0.73118,2735.0,2734.8,3.21328456]
[1739824712487,0.73108,2735.3,2735.0,0.73115]
[1739824712788,0.7311,2735.2,2735.0,0.73115]
[1739824713180,0.7311,2735.2,2734.9,1.84506]
[1739824713383,0.73111,2735.2,2734.9,1.84506]
[1739824713678,0.546,2735.3,2734.8,3.21328456]
[1739824713876,0.73118,2734.9,2734.8,3.21328456]
[1739824714890,0.73117,2735.0,2734.8,3.21328456]
[1739824715786,2.491,2735.1,2734.8,3.21328456]
[1739824715787,0.73118,2734.9,2734.8,3.21328456]
[1739824716087,2.491,2735.1,2734.8,3.21328456]
[1739824716288,3.22214,2735.1,2734.8,3.94449456]
[1739824716488,0.73118,2734.9,2734.8,3.21328456]
[1739824716886,2.491,2735.1,2734.8,3.21328456]
[1739824717083,0.73118,2734.9,2734.8,3.21328456]
[1739824717485,0.73118,2734.9,2734.8,0.00548456]
[1739824718885,3.93898,2734.9,2734.8,0.00548456]
[1739824719085,0.73133,2734.4,2734.2,3.7826]
[1739824719486,2.491,2734.6,2734.2,3.7826]
[1739824719692,0.7313,2734.5,2734.2,4.51394]
[1739824719887,0.7313,2734.5,2734.3,0.73134]
[1739824720282,3.22227,2734.6,2734.2,3.7826]
[1739824720488,2.491,2734.6,2734.4,0.7313]
[1739824720689,3.22228,2734.6,2734.4,0.7313]
[1739824720886,2.491,2734.6,2734.3,3.79097573]
[1739824721191,0.73131,2734.5,2734.2,3.7826]
[1739824721382,0.73129,2734.5,2734.2,4.51395]
[1739824721586,0.73132,2734.4,2734.3,0.73134]
[1739824721892,2.491,2734.6,2734.2,3.7826]
[1739824722190,0.7313,2734.5,2734.3,0.73133]
[1739824722589,0.7313,2734.5,2734.2,3.7826]
[1739824722783,2.491,2734.6,2734.2,3.7826]
[1739824723291,0.00548456,2734.7,2734.6,0.73126]
[1739824724087,0.00548456,2734.7,2734.5,0.73127]
[1739824724395,0.00548456,2734.7,2734.6,0.73126]
[1739824725195,0.00548456,2734.7,2734.6,4.52223573]
[1739824725587,2.492,2735.1,2734.6,10.34717573]
[1739824725790,2.492,2735.4,2735.1,0.73112]
[1739824725990,2.492,2735.4,2735.2,0.5662]
[1739824726189,2.492,2735.4,2734.9,3.2078]
[1739824726391,0.73115,2735.0,2734.9,3.2078]